fUSD/lending_fUSD_20240708
["ID","MTS","AMOUNT","RATE_DAILY","PERIOD"]
[331496971,1720440442160,-2045.63,0.0005041,120]
[331496972,1720440442434,-679.68,0.0005041,120]
[331496973,1720440442497,-500.0,0.0005041,120]
[331496974,1720440442558,-500.0,0.0005041,120]
[331496975,1720440442620,-5851.04,0.0005041,120]
[331496976,1720440442680,-500.0,0.0005041,120]
[331496977,1720440442742,-790.26,0.0005041,120]
[331496978,1720440442802,-3857.14,0.0005041,120]
[331496979,1720440442863,-500.0,0.0005041,120]
[331496980,1720440442925,-500.0,0.0005041,120]
[331496981,1720440442992,-500.0,0.0005041,120]
[331496982,1720440443057,-500.0,0.0005041,40]
[331496983,1720440443123,-179.4629974,0.0005041,120]
[331496984,1720440443184,-918.0,0.0005041,120]
[331496985,1720440443247,-1071.27,0.0005041,120]
[331496986,1720440443309,-500.0,0.0005041,120]
[331496987,1720440443370,-1237.8,0.0005041,120]
[331496988,1720440443433,-9335.91,0.0005041,120]
[331496989,1720440443497,-971.7,0.0005041,120]
[331496990,1720440443561,-1080.21,0.0005041,120]
[331496991,1720440443623,-500.0,0.0005041,120]
[331496992,1720440443685,-500.0,0.0005041,120]
[331496993,1720440443747,-500.0,0.0005041,120]
[331496994,1720440443805,-500.0,0.0005041,120]
[331496995,1720440443863,-4880.04,0.0005041,120]
[331496996,1720440443924,-836.04,0.0005041,120]
[331496997,1720440443987,-2472.65,0.0005041,120]
[331496998,1720440444051,-550.11,0.0005041,120]
[331496999,1720440444118,-1021.84,0.0005041,120]
[331497000,1720440444182,-500.0,0.0005041,120]
[331497001,1720440444247,-500.0,0.0005041,120]
[331497002,1720440444311,-500.0,0.0005041,120]
[331497003,1720440444374,-500.0,0.0005041,120]
[331497004,1720440444437,-1033.51,0.0005041,120]
[331497005,1720440444503,-500.0,0.0005041,120]
[331497006,1720440444568,-820.16,0.0005041,120]
[331497007,1720440444629,-1695.51,0.0005041,120]
[331497008,1720440444691,-504.80702198,0.0005041,120]
[331497009,1720440444754,-4157.78,0.0005041,120]
[331497010,1720440444820,-511.6,0.0005041,120]
[331497011,1720440444886,-500.0,0.0005041,120]
[331497012,1720440444950,-3132.94,0.0005041,120]
[331497013,1720440445019,-1913.66,0.0005041,120]
[331497014,1720440445084,-500.0,0.0005041,120]
[331497015,1720440445151,-652.08,0.0005041,120]
[331497016,1720440445214,-1698.07,0.0005041,120]
[331497017,1720440445280,-500.0,0.0005041,120]
[331497018,1720440445344,-500.0,0.0005041,120]
[331497019,1720440445408,-500.0,0.0005041,120]
[331497020,1720440445471,-637.31,0.0005041,120]
[331497021,1720440445533,-3335.79,0.0005041,120]
[331497022,1720440445593,-490.94,0.0005041,120]
[331497023,1720440445654,-572.94,0.0005041,120]
[331497024,1720440445716,-500.0,0.0005041,120]
[331497025,1720440445780,-500.0,0.0005041,120]
[331497026,1720440445845,-1910.14,0.0005041,120]
[331497027,1720440445911,-2108.8,0.0005041,120]
[331497028,1720440445976,-694.53,0.0005041,120]
[331497029,1720440446045,-500.0,0.0005041,120]
[331497030,1720440446122,-500.0,0.0005041,120]
[331497031,1720440446185,-1154.16,0.0005041,120]
[331497032,1720440446249,-1564.34,0.0005041,120]
[331497033,1720440446311,-500.0,0.0005041,120]
[331497034,1720440446376,-500.0,0.0005041,120]
[331497035,1720440446440,-2059.4,0.0005041,120]
[331497036,1720440446500,-3033.38,0.0005041,120]
[331497037,1720440446563,-500.0,0.0005041,120]
[331497038,1720440446623,-500.0,0.0005041,120]
[331497039,1720440446682,-500.0,0.0005041,120]
[331497040,1720440446739,-989.58,0.0005041,120]
[331497041,1720440446799,-500.0,0.0005041,120]
[331497042,1720440446858,-2399.84,0.0005041,120]
[331497043,1720440446918,-500.0,0.0005041,120]
[331497044,1720440446979,-500.0,0.0005041,120]
[331497045,1720440447038,-500.0,0.0005041,120]
[331497046,1720440447098,-1672.29,0.0005041,120]
[331497047,1720440447155,-500.0,0.0005041,120]
[331497048,1720440447213,-1604.31,0.0005041,120]
[331497049,1720440447272,-500.0,0.0005041,120]
[331497050,1720440447329,-500.0,0.0005041,120]
[331497051,1720440447386,-500.0,0.0005041,120]
[331497052,1720440447441,-500.0,0.0005041,120]
[331497053,1720440447497,-2417.35,0.0005041,120]
[331497054,1720440447554,-500.0,0.0005041,120]
[331497055,1720440447612,-500.0,0.0005041,120]
[331497056,1720440447668,-500.0,0.0005041,120]
[331497057,1720440447723,-500.0,0.0005041,120]
[331497058,1720440447779,-500.0,0.0005041,120]
[331497059,1720440447835,-500.0,0.0005041,120]
[331497060,1720440447890,-691.6,0.0005041,120]
[331497061,1720440447950,-1416.43,0.0005041,120]
[331497062,1720440448015,-1198.2,0.0005041,120]
[331497063,1720440448081,-500.0,0.0005041,120]
[331497064,1720440448141,-972.54,0.0005041,120]
[331497065,1720440448201,-500.0,0.0005041,120]
[331497066,1720440448268,-992.98,0.0005041,120]
[331497067,1720440448327,-1035.8,0.0005041,120]
[331497068,1720440448387,-542.92,0.0005041,120]
[331497069,1720440448443,-500.0,0.0005041,120]
[331497070,1720440448501,-3821.85,0.0005041,120]
[331497071,1720440448556,-500.0,0.0005041,120]
[331497072,1720440448610,-500.0,0.0005041,120]
[331497073,1720440448666,-500.0,0.0005041,120]
[331497074,1720440448721,-500.0,0.0005041,120]
[331497075,1720440448776,-500.0,0.0005041,120]
[331497076,1720440449040,-500.0,0.0005041,120]
[331497077,1720440449105,-587.73,0.0005041,120]
[331497078,1720440449168,-971.56,0.0005041,120]
[331497079,1720440449227,-500.0,0.0005041,120]
[331497080,1720440449287,-500.0,0.0005041,120]
[331497081,1720440449343,-1317.09,0.0005041,120]
[331497082,1720440449401,-500.0,0.0005041,120]
[331497083,1720440449459,-1389.08,0.0005041,120]
[331497084,1720440449516,-500.0,0.0005041,120]
[331497085,1720440449573,-500.0,0.0005041,120]
[331497086,1720440449629,-1639.49,0.0005041,120]
[331497087,1720440449685,-867.82,0.0005041,120]
[331497088,1720440449743,-500.0,0.0005041,120]
[331497089,1720440449800,-500.0,0.0005041,120]
[331497090,1720440449855,-500.0,0.0005041,120]
[331497091,1720440449915,-500.0,0.0005041,120]
[331497092,1720440449977,-500.0,0.0005041,120]
[331497093,1720440450040,-615.39,0.0005041,120]
[331497094,1720440450102,-500.0,0.0005041,120]
[331497095,1720440450161,-500.0,0.0005041,120]
[331497096,1720440450218,-2430.97,0.0005041,120]
[331497097,1720440450275,-500.0,0.0005041,120]
[331497098,1720440450330,-2066.55,0.0005041,120]
[331497099,1720440450387,-921.41,0.0005041,120]
[331497100,1720440450442,-500.0,0.0005041,120]
[331497101,1720440450499,-548.85,0.0005041,120]
[331497102,1720440450557,-500.0,0.0005041,120]
[331497103,1720440450611,-500.0,0.0005041,120]
[331497104,1720440450667,-500.0,0.0005041,120]
[331497105,1720440450724,-1045.8,0.0005041,120]
[331497106,1720440450780,-500.0,0.0005041,120]
[331497107,1720440450836,-3346.99,0.0005041,120]
[331497108,1720440450893,-2785.91,0.0005041,120]
[331497109,1720440450949,-500.0,0.0005041,120]
[331497110,1720440451008,-613.69,0.0005041,120]
[331497111,1720440451071,-500.0,0.0005041,120]
[331497112,1720440451128,-500.0,0.0005041,120]
[331497113,1720440451187,-500.0,0.0005041,120]
[331497114,1720440451246,-500.0,0.0005041,120]
[331497115,1720440451310,-500.0,0.0005041,120]
[331497116,1720440451370,-2884.68,0.0005041,120]
[331497117,1720440451431,-500.0,0.0005041,120]
[331497118,1720440451492,-1430.22,0.0005041,120]
[331497119,1720440451552,-1223.29,0.0005041,120]
[331497120,1720440451609,-521.67,0.0005041,120]
[331497121,1720440451667,-500.0,0.0005041,120]
[331497122,1720440451721,-500.0,0.0005041,120]
[331497123,1720440451773,-1451.36,0.0005041,120]
[331497124,1720440451825,-611.61,0.0005041,120]
[331497125,1720440451875,-500.0,0.0005041,120]
[331497126,1720440451925,-919.43,0.0005041,120]
[331497127,1720440451976,-729.84,0.0005041,120]
[331497128,1720440452028,-500.0,0.0005041,120]
[331497129,1720440452081,-500.0,0.0005041,120]
[331497130,1720440452135,-500.0,0.0005041,120]
[331497131,1720440452187,-500.0,0.0005041,120]
[331497132,1720440452238,-1252.38,0.0005041,120]
[331497133,1720440452290,-902.66,0.0005041,120]
[331497134,1720440452343,-500.0,0.0005041,120]
[331497135,1720440452395,-1130.53,0.0005041,120]
[331497136,1720440452447,-558.45,0.0005041,120]
[331497137,1720440452500,-1710.79,0.0005041,120]
[331497138,1720440452557,-500.0,0.0005041,120]
[331497139,1720440452618,-595.41,0.0005041,120]
[331497140,1720440452678,-1387.34,0.0005041,120]
[331497141,1720440452736,-424.90663856,0.0005041,120]
[331497142,1720440452794,-801.29,0.0005041,120]
[331497143,1720440452852,-500.0,0.0005041,120]
[331497144,1720440452909,-500.0,0.0005041,120]
[331497145,1720440452967,-681.95,0.0005041,120]
[331497146,1720440453029,-647.19,0.0005041,120]
[331497147,1720440453090,-500.0,0.0005041,120]
[331497148,1720440453152,-500.0,0.0005041,120]
[331497149,1720440453211,-500.0,0.0005041,120]
[331497150,1720440453270,-500.0,0.0005041,120]
[331497151,1720440453329,-500.0,0.0005041,120]
[331497152,1720440453390,-500.0,0.0005041,120]
[331497153,1720440453448,-920.91,0.0005041,120]
[331497154,1720440453510,-809.57,0.0005041,120]
[331497155,1720440453569,-1342.46,0.0005041,120]
[331497156,1720440453626,-508.51,0.0005041,120]
[331497157,1720440453682,-866.07,0.0005041,120]
[331497158,1720440453737,-500.0,0.0005041,120]
[331497159,1720440453793,-500.0,0.0005041,120]
[331497160,1720440453850,-669.08,0.0005041,120]
[331497161,1720440453905,-500.0,0.0005041,120]
[331497162,1720440453965,-500.0,0.0005041,120]
[331497163,1720440454026,-924.87,0.0005041,120]
[331497164,1720440454088,-500.0,0.0005041,120]
[331497165,1720440454152,-1526.59,0.0005041,120]
[331497166,1720440454217,-2651.63,0.0005041,120]
[331497167,1720440454283,-500.0,0.0005041,120]
[331497168,1720440454344,-500.0,0.0005041,120]
[331497169,1720440454402,-500.0,0.0005041,120]
[331497170,1720440454460,-2744.63,0.0005041,120]
[331497171,1720440454520,-2267.0,0.0005041,120]
[331497172,1720440454577,-500.0,0.0005041,120]
[331497173,1720440454632,-500.0,0.0005041,120]
[331497174,1720440454692,-574.0,0.0005041,120]
[331497175,1720440454750,-500.0,0.0005041,120]
[331497176,1720440454807,-775.01,0.0005041,120]
[331497177,1720440454866,-500.0,0.0005041,120]
[331497178,1720440454924,-500.0,0.0005041,120]
[331497179,1720440454983,-500.0,0.0005041,90]
[331497180,1720440455261,-1695.04,0.0005041,120]
[331497181,1720440455321,-500.0,0.0005041,120]
[331497182,1720440455378,-500.0,0.0005041,120]
[331497183,1720440455434,-2426.36,0.0005041,120]
[331497184,1720440455490,-500.0,0.0005041,120]
[331497185,1720440455545,-500.0,0.0005041,120]
[331497186,1720440455599,-1245.56,0.0005041,120]
[331497187,1720440455655,-500.0,0.0005041,120]
[331497188,1720440455708,-500.0,0.0005041,120]
[331497189,1720440455764,-785.15,0.0005041,120]
[331497190,1720440455821,-1245.98,0.0005041,120]
[331497191,1720440455877,-1155.34,0.0005041,120]
[331497192,1720440455935,-500.0,0.0005041,120]
[331497193,1720440455994,-555.03,0.0005041,120]
[331497194,1720440456054,-500.0,0.0005041,120]
[331497195,1720440456116,-500.0,0.0005041,120]
[331497196,1720440456178,-500.0,0.0005041,120]
[331497197,1720440456239,-615.36,0.0005041,120]
[331497198,1720440456299,-803.39,0.0005041,120]
[331497199,1720440456357,-500.0,0.0005041,120]
[331497200,1720440456412,-1347.23,0.0005041,120]
[331497201,1720440456471,-1305.54,0.0005041,120]
[331497202,1720440456527,-334.71311191,0.0005041,120]
[331497203,1720440456584,-949.65,0.0005041,120]
[331497204,1720440456641,-500.0,0.0005041,120]
[331497205,1720440456698,-500.0,0.0005041,120]
[331497206,1720440456754,-500.0,0.0005041,120]
[331497207,1720440456809,-500.0,0.0005041,120]
[331497208,1720440456863,-568.39,0.0005041,120]
[331497209,1720440456917,-500.0,0.0005041,120]
[331497210,1720440456974,-500.0,0.0005041,120]
[331497211,1720440457031,-784.35,0.0005041,120]
[331497212,1720440457092,-796.74,0.0005041,120]
[331497213,1720440457159,-500.0,0.0005041,120]
[331497214,1720440457222,-500.0,0.0005041,120]
[331497215,1720440457285,-453.16,0.0005041,120]
[331497216,1720440457345,-500.0,0.0005041,120]
[331497217,1720440457401,-838.64,0.0005041,120]
[331497218,1720440457455,-500.0,0.0005041,120]
[331497219,1720440457511,-739.18,0.0005041,120]
[331497220,1720440457563,-995.21,0.0005041,120]
[331497221,1720440457615,-500.0,0.0005041,120]
[331497222,1720440457668,-1155.36,0.0005041,120]
[331497223,1720440457720,-751.81,0.0005041,120]
[331497224,1720440457771,-500.0,0.0005041,120]
[331497225,1720440457822,-1142.72,0.0005041,120]
[331497226,1720440457873,-2126.32,0.0005041,120]
[331497227,1720440457924,-1163.78,0.0005041,120]
[331497228,1720440457979,-500.0,0.0005041,120]
[331497229,1720440458035,-743.53,0.0005041,120]
[331497230,1720440458092,-500.0,0.0005041,120]
[331497231,1720440458150,-934.66,0.0005041,120]
[331497232,1720440458202,-500.0,0.0005041,120]
[331497233,1720440458257,-1658.26,0.0005041,120]
[331497234,1720440458311,-995.22,0.0005041,120]
[331497235,1720440458363,-784.36,0.0005041,120]
[331497236,1720440458416,-500.0,0.0005041,120]
[331497237,1720440458469,-500.0,0.0005041,120]
[331497238,1720440458523,-1579.18,0.0005041,120]
[331497239,1720440458579,-500.0,0.0005041,120]
[331497240,1720440458634,-389.98818696,0.0005041,120]
[331497241,1720440458690,-500.0,0.0005041,120]
[331497242,1720440458746,-580.63,0.0005041,120]
[331497243,1720440458801,-500.0,0.0005041,120]
[331497244,1720440458856,-500.0,0.0005041,120]
[331497245,1720440458911,-500.0,0.0005041,120]
[331497246,1720440458968,-500.0,0.0005041,120]
[331497247,1720440459032,-500.0,0.0005041,120]
[331497248,1720440459094,-693.77,0.0005041,120]
[331497249,1720440459156,-1079.99,0.0005041,120]
[331497250,1720440459219,-633.12,0.0005041,120]
[331497251,1720440459280,-500.0,0.0005041,120]
[331497252,1720440459342,-510.79,0.0005041,120]
[331497253,1720440459404,-500.0,0.0005041,120]
[331497254,1720440459469,-534.95,0.0005041,120]
[331497255,1720440459534,-500.0,0.0005041,120]
[331497256,1720440459600,-808.16,0.0005041,120]
[331497257,1720440459667,-500.0,0.0005041,120]
[331497258,1720440459732,-2055.98,0.0005041,120]
[331497259,1720440459797,-652.14,0.0005041,120]
[331497260,1720440459864,-500.0,0.0005041,120]
[331497261,1720440459932,-500.0,0.0005041,120]
[331497262,1720440460002,-837.72,0.0005041,120]
[331497263,1720440460068,-500.0,0.0005041,120]
[331497264,1720440460134,-974.55,0.0005041,120]
[331497265,1720440460201,-500.0,0.0005041,120]
[331497266,1720440460274,-500.0,0.0005041,120]
[331497267,1720440460341,-500.0,0.0005041,120]
[331497268,1720440460409,-668.71,0.0005041,120]
[331497269,1720440460478,-918.92,0.0005041,120]
[331497270,1720440460546,-500.0,0.0005041,120]
[331497271,1720440460609,-500.0,0.0005041,120]
[331497272,1720440460671,-500.0,0.0005041,120]
[331497273,1720440460737,-500.0,0.0005041,120]
[331497274,1720440460799,-500.0,0.0005041,120]
[331497275,1720440460863,-733.46,0.0005041,120]
[331497276,1720440460927,-500.0,0.0005041,120]
[331497277,1720440460993,-500.0,0.0005041,120]
[331497278,1720440461059,-500.0,0.0005041,120]
[331497279,1720440461122,-777.5,0.0005041,120]
[331497280,1720440461187,-500.0,0.0005041,120]
[331497281,1720440461256,-843.38,0.0005041,120]
[331497282,1720440461323,-500.0,0.0005041,120]
[331497283,1720440461385,-500.0,0.0005041,120]
[331497284,1720440461655,-500.0,0.0005041,120]
[331497285,1720440461715,-500.0,0.0005041,120]
[331497286,1720440461778,-500.0,0.0005041,120]
[331497287,1720440461842,-852.37,0.0005041,120]
[331497288,1720440461903,-500.0,0.0005041,120]
[331497289,1720440461971,-500.0,0.0005041,120]
[331497290,1720440462034,-500.0,0.0005041,120]
[331497291,1720440462094,-500.0,0.0005041,120]
[331497292,1720440462154,-533.63803603,0.0005041,120]
[331497293,1720440462212,-500.0,0.0005041,120]
[331497294,1720440462278,-500.0,0.0005041,120]
[331497295,1720440462337,-1186.97,0.0005041,120]
[331497296,1720440462394,-500.0,0.0005041,120]
[331497297,1720440462451,-1241.83,0.0005041,120]
[331497298,1720440462509,-500.0,0.0005041,120]
[331497299,1720440462567,-500.0,0.0005041,120]
[331497300,1720440462624,-807.64,0.0005041,120]
[331497301,1720440462682,-500.0,0.0005041,120]
[331497302,1720440462740,-500.0,0.0005041,120]
[331497303,1720440462799,-500.0,0.0005041,120]
[331497304,1720440462857,-500.0,0.0005041,120]
[331497305,1720440462915,-598.12563857,0.0005041,120]
[331497306,1720440462976,-500.0,0.0005041,120]
[331497307,1720440463035,-803.38,0.0005041,120]
[331497308,1720440463098,-1355.78,0.0005041,120]
[331497309,1720440463159,-657.3,0.0005041,120]
[331497310,1720440463221,-500.0,0.0005041,120]
[331497311,1720440463282,-500.0,0.0005041,120]
[331497312,1720440463343,-500.0,0.0005041,120]
[331497313,1720440463403,-500.0,0.0005041,120]
[331497314,1720440463464,-500.0,0.0005041,120]
[331497315,1720440463526,-500.0,0.0005041,120]
[331497316,1720440463585,-500.0,0.0005041,120]
[331497317,1720440463643,-180.89516846,0.0005041,120]
[331497318,1720440463702,-500.0,0.0005041,120]
[331497319,1720440463763,-500.0,0.0005041,120]
[331497320,1720440463821,-500.0,0.0005041,120]
[331497321,1720440463881,-500.0,0.0005041,120]
[331497322,1720440463944,-500.0,0.0005041,120]
[331497323,1720440464006,-628.32,0.0005041,120]
[331497324,1720440464072,-500.0,0.0005041,120]
[331497325,1720440464134,-500.0,0.0005041,120]
[331497326,1720440464195,-525.31,0.0005041,120]
[331497327,1720440464256,-552.79,0.0005041,120]
[331497328,1720440464317,-500.0,0.0005041,120]
[331497329,1720440464377,-500.0,0.0005041,120]
[331497330,1720440464435,-682.0,0.0005041,120]
[331497331,1720440464492,-500.0,0.0005041,120]
[331497332,1720440464552,-1095.38,0.0005041,120]
[331497333,1720440464613,-500.0,0.0005041,120]
[331497334,1720440464675,-1081.98,0.0005041,120]
[331497335,1720440464731,-766.48,0.0005041,120]
[331497336,1720440464787,-500.0,0.0005041,120]
[331497337,1720440464844,-500.0,0.0005041,120]
[331497338,1720440464901,-500.0,0.0005041,120]
[331497339,1720440464961,-712.75,0.0005041,120]
[331497340,1720440465023,-500.0,0.0005041,120]
[331497341,1720440465091,-500.0,0.0005041,120]
[331497342,1720440465154,-500.0,0.0005041,120]
[331497343,1720440465213,-513.88003142,0.0005041,120]
[331497344,1720440465274,-500.0,0.0005041,120]
[331497345,1720440465332,-887.36,0.0005041,120]
[331497346,1720440465389,-500.0,0.0005041,120]
[331497347,1720440465445,-989.73,0.0005041,120]
[331497348,1720440465502,-500.0,0.0005041,120]
[331497349,1720440465556,-500.0,0.0005041,120]
[331497350,1720440465612,-568.6,0.0005041,120]
[331497351,1720440465675,-500.0,0.0005041,120]
[331497352,1720440465733,-500.0,0.0005041,120]
[331497353,1720440465789,-500.0,0.0005041,120]
[331497354,1720440465845,-500.0,0.0005041,120]
[331497355,1720440465902,-500.0,0.0005041,120]
[331497356,1720440465961,-383.16675074,0.0005041,120]
[331497357,1720440466029,-665.12,0.0005041,120]
[331497358,1720440466097,-500.0,0.0005041,120]
[331497359,1720440466163,-500.0,0.0005041,120]
[331497360,1720440466226,-500.0,0.0005041,120]
[331497361,1720440466287,-500.0,0.0005041,120]
[331497362,1720440466349,-500.0,0.0005041,120]
[331497363,1720440466409,-500.0,0.0005041,120]
[331497364,1720440466463,-500.0,0.0005041,120]
[331497365,1720440466520,-500.0,0.0005041,120]
[331497366,1720440466577,-785.44,0.0005041,120]
[331497367,1720440466634,-2486.56,0.0005041,120]
[331497368,1720440466687,-500.0,0.0005041,120]
[331497369,1720440466743,-500.0,0.0005041,120]
[331497370,1720440466799,-500.0,0.0005041,120]
[331497371,1720440466856,-500.0,0.0005041,120]
[331497372,1720440466912,-507.05239355,0.0005041,120]
[331497373,1720440466973,-500.0,0.0005041,120]
[331497374,1720440467034,-500.0,0.0005041,120]
[331497375,1720440467094,-500.0,0.0005041,120]
[331497376,1720440467156,-500.0,0.0005041,120]
[331497377,1720440467213,-505.98,0.0005041,120]
[331497378,1720440467274,-500.0,0.0005041,120]
[331497379,1720440467332,-500.0,0.0005041,120]
[331497380,1720440467389,-500.0,0.0005041,120]
[331497381,1720440467444,-500.0,0.0005041,120]
[331497382,1720440467504,-500.0,0.0005041,120]
[331497383,1720440467564,-500.0,0.0005041,120]
[331497384,1720440467621,-215.7973593,0.0005041,120]
[331497385,1720440467674,-500.0,0.0005041,120]
[331497386,1720440467729,-500.0,0.0005041,120]
[331497387,1720440467788,-500.0,0.0005041,120]
[331497388,1720440467848,-891.8,0.0005041,120]
[331497389,1720440468110,-500.0,0.0005041,120]
[331497390,1720440468172,-270.8756652,0.0005041,120]
[331497391,1720440468234,-500.0,0.0005041,120]
[331497392,1720440468294,-500.0,0.0005041,120]
[331497393,1720440468354,-500.0,0.0005041,120]
[331497394,1720440468412,-500.0,0.0005041,120]
[331497395,1720440468469,-608.44,0.0005041,120]
[331497396,1720440468525,-500.0,0.0005041,120]
[331497397,1720440468580,-500.0,0.0005041,120]
[331497398,1720440468636,-705.57,0.0005041,120]
[331497399,1720440468691,-493.74586011,0.0005041,120]
[331497400,1720440468747,-500.0,0.0005041,120]
[331497401,1720440468803,-500.0,0.0005041,120]
[331497402,1720440468860,-500.0,0.0005041,120]
[331497403,1720440468916,-502.79,0.0005041,120]
[331497404,1720440468976,-500.0,0.0005041,120]
[331497405,1720440469037,-500.0,0.0005041,120]
[331497406,1720440469097,-500.0,0.0005041,120]
[331497407,1720440469158,-605.18,0.0005041,120]
[331497408,1720440469214,-500.0,0.0005041,120]
[331497409,1720440469274,-500.0,0.0005041,120]
[331497410,1720440469334,-500.0,0.0005041,120]
[331497411,1720440469392,-500.0,0.0005041,120]
[331497412,1720440469453,-500.0,0.0005041,120]
[331497413,1720440469512,-500.0,0.0005041,120]
[331497414,1720440469569,-500.0,0.0005041,120]
[331497415,1720440469627,-500.0,0.0005041,120]
[331497416,1720440469682,-500.0,0.0005041,120]
[331497417,1720440469738,-500.0,0.0005041,120]
[331497418,1720440469795,-500.0,0.0005041,120]
[331497419,1720440469852,-500.0,0.0005041,120]
[331497420,1720440469907,-500.0,0.0005041,120]
[331497421,1720440469972,-500.0,0.0005041,120]
[331497422,1720440470034,-500.0,0.0005041,120]
[331497423,1720440470097,-500.0,0.0005041,120]
[331497424,1720440470158,-500.0,0.0005041,120]
[331497425,1720440470220,-500.0,0.0005041,120]
[331497426,1720440470283,-500.0,0.0005041,120]
[331497427,1720440470343,-500.0,0.0005041,120]
[331497428,1720440470402,-712.81,0.0005041,120]
[331497429,1720440470464,-534.72,0.0005041,120]
[331497430,1720440470528,-500.0,0.0005041,120]
[331497431,1720440470593,-1760.36,0.0005041,120]
[331497432,1720440470661,-800.08,0.0005041,120]
[331497433,1720440470726,-500.0,0.0005041,120]
[331497434,1720440470787,-894.69,0.0005041,120]
[331497435,1720440470849,-723.54,0.0005041,120]
[331497436,1720440470911,-530.59,0.0005041,120]
[331497437,1720440470985,-500.0,0.0005041,120]
[331497438,1720440471052,-839.95,0.0005041,120]
[331497439,1720440471114,-511.1,0.0005041,120]
[331497440,1720440471174,-500.0,0.0005041,120]
[331497441,1720440471235,-500.0,0.0005041,120]
[331497442,1720440471293,-500.0,0.0005041,120]
[331497443,1720440471350,-760.52,0.0005041,120]
[331497444,1720440471407,-922.86,0.0005041,120]
[331497445,1720440471465,-500.0,0.0005041,120]
[331497446,1720440471526,-866.49,0.0005041,120]
[331497447,1720440471584,-500.0,0.0005041,120]
[331497448,1720440471646,-500.0,0.0005041,120]
[331497449,1720440471707,-500.0,0.0005041,120]
[331497450,1720440471771,-500.0,0.0005041,120]
[331497451,1720440471834,-500.0,0.0005041,120]
[331497452,1720440471894,-500.0,0.0005041,120]
[331497453,1720440471953,-500.0,0.0005041,120]
[331497454,1720440472013,-500.0,0.0005041,120]
[331497455,1720440472076,-500.0,0.0005041,120]
[331497456,1720440472136,-500.0,0.0005041,120]
[331497457,1720440472198,-500.0,0.0005041,120]
[331497458,1720440472257,-500.0,0.0005041,120]
[331497459,1720440472314,-272.61973764,0.0005041,120]
[331497460,1720440472370,-500.0,0.0005041,120]
[331497461,1720440472426,-525.11280111,0.0005041,120]
[331497462,1720440472480,-500.0,0.0005041,120]
[331497463,1720440472535,-512.84567128,0.0005041,120]
[331497464,1720440472589,-500.0,0.0005041,120]
[331497465,1720440472646,-500.0,0.0005041,120]
[331497466,1720440472700,-500.0,0.0005041,120]
[331497467,1720440472757,-500.0,0.0005041,120]
[331497468,1720440472813,-500.0,0.0005041,120]
[331497469,1720440472869,-500.0,0.0005041,120]
[331497470,1720440472925,-500.0,0.0005041,120]